[Event "36th German Seniors-ch-65 2024"]
[Site "Bad Wildungen"]
[Date "2024.08.25"]
[Round "2.6"]
[White "Vasiljev, Jurij"]
[Black "Buchal, Stephan"]
[Result "0-1"]
[ECO "E62"]
[WhiteElo "1993"]
[BlackElo "2215"]
[Annotator "RC"]
[PlyCount "130"]
[EventDate "2024.08.22"]
[EventType "swiss"]
[EventCountry "GER"]
[SourceTitle "playchess.com"]
[Source "ChessBase"]
[SourceQuality "1"]
[TimeControl "40/5400+30:1800+30"]

1. d4 {[%emt 0:00:06]} d6 {[%emt 0:00:24]} 2. c4 {[%emt 0:00:23]} g6 {[%emt 0:00:22]} 3. g3 {[%emt 0:00:41]} Bg7 {[%emt 0:00:36]} 4. Nf3 {[%emt 0:00:28]} Nf6 {[%emt 0:00:57]} 5. Bg2 {[%emt 0:00:52]} O-O {[%emt 0:00:29]} 6. O-O {[%emt 0:00:14]} Nc6 {[%emt 0:00:11]} 7. Nc3 {[%emt 0:01:00]} e5 {[%emt 0:02:19]} 8. dxe5 {[%emt 0:01:51]} Nxe5 {[%emt 0:00:17]} 9. Nxe5 {[%emt 0:00:42]} dxe5 {[%emt 0:00:06]} 10. Bg5 {[%emt 0:01:22]} Qxd1 {[%emt 0:10:58]} 11. Raxd1 {[%emt 0:01:29]} h6 {[%emt 0:01:46]} 12. Bxf6 {[%emt 0:03:39]} Bxf6 {[%emt 0:00:19]} 13. Nd5 {[%emt 0:00:19]} Bd8 {[%emt 0:00:41]} 14. Rd2 {[%emt 0:03:03]} Be6 {[%emt 0:05:16]} 15. b4 {[%emt 0:05:58]} c6 {[%emt 0:05:05]} 16. Ne3 {[%emt 0:00:14]} Bg5 {[%emt 0:18:06]} 17. f4 {[%emt 0:00:12]} exf4 {[%emt 0:00:49]} 18. gxf4 {[%emt 0:00:10]} Be7 {[%emt 0:00:45]} 19. a3 {[%emt 0:04:11]} Rfd8 {[%emt 0:12:04]} 20. Rfd1 {[%emt 0:00:50]} Rxd2 {[%emt 0:00:29]} 21. Rxd2 {[%emt 0:00:14]} a5 {[%emt 0:00:25]} 22. c5 {[%emt 0:06:16]} axb4 {[%emt 0:03:35]} 23. axb4 {[%emt 0:00:16]} Ra4 {[%emt 0:02:53]} 24. Nc2 {[%emt 0:08:11]} Bb3 {[%emt 0:09:55]} 25. Nd4 {[%emt 0:05:15]} Rxb4 {[%emt 0:01:24]} 26. Nxb3 {[%emt 0:00:33]} Rxb3 {[%emt 0:00:03]} 27. Rc2 {[%emt 0:01:26]} Rb5 {[%emt 0:02:29]} 28. Bh3 {[%emt 0:01:12]} Bxc5+ {[%emt 0:03:26]} 29. Kg2 {[%emt 0:00:08]} Bd4 {[%emt 0:03:36]} 30. Bd7 {[%emt 0:01:23]} Kf8 {[%emt 0:02:24]} 31. Rc4 {[%emt 0:02:08]} Bf6 {[%emt 0:04:08]} 32. e4 {[%emt 0:00:52]} Rb2+ {[%emt 0:04:14]} 33. Kg3 {[%emt 0:00:46]} Rb3+ {[%emt 0:00:06]} 34. Kg2 {[%emt 0:00:23]} Rb2+ {[%emt 0:00:28]} 35. Kg3 {[%emt 0:00:15]} Rb3+ {[%emt 0:00:08]} 36. Kg2 {[%emt 0:00:13]} Ke7 {[%emt 0:02:37]} 37. Bc8 {[%emt 0:01:39]} Rb2+ {[%emt 0:00:24]} 38. Kg3 {[%emt 0:00:12]} Rb3+ {[%emt 0:00:03]} 39. Kg2 {[%emt 0:00:16]} Rb2+ {[%emt 0:01:23]} 40. Kg3 {[%emt 0:00:10]} g5 {[%emt 0:01:37]} 41. e5 {[%emt 0:32:29]} gxf4+ {[%emt 0:30:26]} 42. Kxf4 {[%emt 0:00:10]} Bg5+ {[%emt 0:00:48]} 43. Kg3 {[%emt 0:03:15]} Kd8 {[%emt 0:00:00]} 44. Bg4 {[%emt 0:00:00]} Rb3+ {[%emt 0:00:00]} 45. Kg2 {[%emt 0:00:00]} Rd3 {[%emt 0:00:00]} 46. Bh5 {[%emt 0:00:00]} Re3 {[%emt 0:00:00]} 47. Bxf7 {[%emt 0:00:00]} Rxe5 {[%emt 0:00:00]} 48. h4 {[%emt 0:00:00]} Be3 {[%emt 0:00:00]} 49. Bg6 {[%emt 0:00:00]} Re6 {[%emt 0:00:00]} 50. h5 {[%emt 0:00:00]} b5 {[%emt 0:00:00]} 51. Re4 {[%emt 0:00:00]} Rxe4 {[%emt 0:00:00]} 52. Bxe4 {[%emt 0:00:00]} Kd7 {[%emt 0:00:00]} 53. Kf3 {[%emt 0:00:00]} Bg5 {[%emt 0:00:00]} 54. Ke2 {[%emt 0:00:00]} c5 {[%emt 0:00:00]} 55. Kd3 {[%emt 0:00:00]} Bf6 {[%emt 0:00:00]} 56. Bd5 {[%emt 0:00:00]} Kc7 {[%emt 0:00:09]} 57. Bf7 {[%emt 0:00:00]} Kb6 {[%emt 0:00:21]} 58. Kc2 {[%emt 0:00:00]} c4 {[%emt 0:00:15]} 59. Bg8 {[%emt 0:00:00]} Kc5 {[%emt 0:00:07]} 60. Bf7 {[%emt 0:00:00]} b4 {[%emt 0:00:06]} 61. Bg8 {[%emt 0:00:00]} b3+ {[%emt 0:00:06]} 62. Kb1 {[%emt 0:00:00]} Kb4 {[%emt 0:00:07]} 63. Bf7 {[%emt 0:00:00]} c3 {[%emt 0:00:07]} 64. Bg6 {[%emt 0:00:00]} Bg5 {[%emt 0:00:23]} 65. Bf5 {[%emt 0:00:00]} Kc5 {[%emt 0:12:48]} 0-1

[Event "36th German Seniors-ch-65 2024"]
[Site "Bad Wildungen"]
[Date "2024.08.25"]
[Round "2.7"]
[White "Richter, Rainer"]
[Black "Vatter, Hans-Joachim"]
[Result "1/2-1/2"]
[ECO "D02"]
[WhiteElo "1991"]
[BlackElo "2212"]
[Annotator "RC"]
[PlyCount "43"]
[EventDate "2024.08.22"]
[EventType "swiss"]
[EventCountry "GER"]
[SourceTitle "playchess.com"]
[Source "ChessBase"]
[SourceQuality "1"]
[TimeControl "40/5400+30:1800+30"]

1. d4 {[%emt 0:00:04]} Nf6 {[%emt 0:00:17]} 2. Nf3 {[%emt 0:00:03]} d5 {[%emt 0:00:20]} 3. Bf4 {[%emt 0:00:40]} c5 {[%emt 0:00:32]} 4. c3 {[%emt 0:02:51]} Nc6 {[%emt 0:04:10]} 5. e3 {[%emt 0:02:11]} Qb6 {[%emt 0:00:15]} 6. Qb3 {[%emt 0:02:59]} c4 {[%emt 0:00:38]} 7. Qxb6 {[%emt 0:00:10]} axb6 {[%emt 0:00:02]} 8. Na3 {[%emt 0:06:18]} Ra5 {[%emt 0:06:04]} 9. Bc7 {[%emt 0:18:25]} e6 {[%emt 0:31:39]} 10. Nc2 {[%emt 0:13:04]} Kd7 {[%emt 0:05:00]} 11. Bg3 {[%emt 0:03:17]} b5 {[%emt 0:00:52]} 12. a3 {[%emt 0:00:25]} Ne4 {[%emt 0:00:16]} 13. Be2 {[%emt 0:07:08]} f6 {[%emt 0:01:56]} 14. Nd2 {[%emt 0:06:50]} Nxg3 {[%emt 0:10:05]} 15. hxg3 {[%emt 0:00:02]} Bd6 {[%emt 0:00:51]} 16. Bf3 {[%emt 0:06:44]} h6 {[%emt 0:02:59]} 17. O-O {[%emt 0:02:13]} f5 {[%emt 0:03:41]} 18. g4 {[%emt 0:26:06]} g6 {[%emt 0:00:19]} 19. g3 {[%emt 0:00:00]} Ke7 {[%emt 0:07:15]} 20. gxf5 {[%emt 0:00:00]} gxf5 {[%emt 0:00:10]} 21. Kg2 {[%emt 0:00:00]} Bd7 {[%emt 0:06:47]} 22. Rh1 {[%emt 0:00:00]} 1/2-1/2

[Event "36th German Seniors-ch-65 2024"]
[Site "Bad Wildungen"]
[Date "2024.08.25"]
[Round "2.8"]
[White "Schmidt, Joerg"]
[Black "Behrens, Harald"]
[Result "1/2-1/2"]
[ECO "C11"]
[WhiteElo "1995"]
[BlackElo "2206"]
[Annotator "RC"]
[PlyCount "128"]
[EventDate "2024.08.22"]
[EventType "swiss"]
[EventCountry "GER"]
[SourceTitle "playchess.com"]
[Source "ChessBase"]
[SourceQuality "1"]
[TimeControl "40/5400+30:1800+30"]

1. e4 {[%emt 0:00:06]} e6 {[%emt 0:00:12]} 2. d4 {[%emt 0:00:09]} d5 {[%emt 0:00:07]} 3. Nc3 {[%emt 0:00:38]} Nf6 {[%emt 0:01:04]} 4. e5 {[%emt 0:01:08]} Nfd7 {[%emt 0:00:14]} 5. f4 {[%emt 0:02:12]} c5 {[%emt 0:01:04]} 6. Nf3 {[%emt 0:00:23]} a6 {[%emt 0:00:53]} 7. Be3 {[%emt 0:05:27]} Nc6 {[%emt 0:00:26]} 8. Qd2 {[%emt 0:03:25]} b5 {[%emt 0:02:14]} 9. a3 {[%emt 0:08:39]} Bb7 {[%emt 0:03:05]} 10. Be2 {[%emt 0:04:21]} Be7 {[%emt 0:04:45]} 11. O-O {[%emt 0:00:08]} O-O {[%emt 0:01:27]} 12. Kh1 {[%emt 0:05:05]} Rc8 {[%emt 0:05:53]} 13. Bd3 {[%emt 0:08:08]} cxd4 {[%emt 0:05:41]} 14. Bxd4 {[%emt 0:03:48]} f5 {[%emt 0:05:27]} 15. Qf2 {[%emt 0:05:35]} Nxd4 {[%emt 0:01:21]} 16. Nxd4 {[%emt 0:00:08]} Qb6 {[%emt 0:00:14]} 17. Nb3 {[%emt 0:04:17]} Nc5 {[%emt 0:10:35]} 18. Nxc5 {[%emt 0:02:39]} Bxc5 {[%emt 0:00:23]} 19. Qg3 {[%emt 0:04:27]} Bd4 {[%emt 0:04:24]} 20. Nd1 {[%emt 0:01:04]} Qc6 {[%emt 0:02:28]} 21. h3 {[%emt 0:08:02]} a5 {[%emt 0:05:08]} 22. Qf3 {[%emt 0:05:45]} Kh8 {[%emt 0:13:09]} 23. c3 {[%emt 0:01:26]} Bb6 {[%emt 0:00:12]} 24. Qe2 {[%emt 0:00:21]} b4 {[%emt 0:00:44]} 25. axb4 {[%emt 0:02:39]} axb4 {[%emt 0:00:06]} 26. cxb4 {[%emt 0:00:21]} d4 {[%emt 0:01:17]} 27. Ba6 {[%emt 0:00:59]} Ra8 {[%emt 0:05:27]} 28. Bxb7 {[%emt 0:01:38]} Qxb7 {[%emt 0:00:07]} 29. Nf2 {[%emt 0:00:18]} Qd5 {[%emt 0:01:04]} 30. Nd3 {[%emt 0:01:29]} h6 {[%emt 0:03:03]} 31. Rxa8 {[%emt 0:04:04]} Rxa8 {[%emt 0:00:16]} 32. Qf3 {[%emt 0:00:55]} Qxf3 {[%emt 0:01:19]} 33. Rxf3 {[%emt 0:00:02]} Ra1+ {[%emt 0:00:53]} 34. Kh2 {[%emt 0:00:30]} Kg8 {[%emt 0:05:26]} 35. Nc5 {[%emt 0:03:39]} Rd1 {[%emt 0:00:07]} 36. Rd3 {[%emt 0:00:28]} Rxd3 {[%emt 0:00:08]} 37. Nxd3 {[%emt 0:00:02]} Kf7 {[%emt 0:00:38]} 38. g4 {[%emt 0:02:01]} Ke7 {[%emt 0:02:18]} 39. Kg3 {[%emt 0:03:34]} fxg4 {[%emt 0:02:04]} 40. hxg4 {[%emt 0:00:17]} g6 {[%emt 0:00:12]} 41. Kf3 {[%emt 0:33:54]} h5 {[%emt 0:32:02]} 42. Kg3 {[%emt 0:02:11]} Kf7 {[%emt 0:00:11]} 43. Kh4 {[%emt 0:02:08]} Bd8+ {[%emt 0:00:06]} 44. Kg3 {[%emt 0:01:04]} Bb6 {[%emt 0:00:06]} 45. b5 {[%emt 0:01:37]} Bc7 {[%emt 0:01:14]} 46. b4 {[%emt 0:00:00]} Bd8 {[%emt 0:00:00]} 47. Nc5 {[%emt 0:00:00]} Bb6 {[%emt 0:00:00]} 48. Ne4 {[%emt 0:00:00]} d3 {[%emt 0:00:00]} 49. Nd6+ {[%emt 0:00:00]} Kg7 {[%emt 0:00:00]} 50. Nc4 {[%emt 0:00:00]} Kf7 {[%emt 0:00:00]} 51. Kf3 {[%emt 0:00:00]} h4 {[%emt 0:00:00]} 52. Kg2 {[%emt 0:00:00]} Ke7 {[%emt 0:00:00]} 53. Nb2 {[%emt 0:00:00]} d2 {[%emt 0:00:00]} 54. Nd1 {[%emt 0:00:00]} Kd7 {[%emt 0:00:00]} 55. g5 {[%emt 0:00:00]} Bd8 {[%emt 0:00:00]} 56. Kh3 {[%emt 0:00:00]} Be7 {[%emt 0:00:00]} 57. Kxh4 {[%emt 0:00:00]} Kc7 {[%emt 0:00:00]} 58. Kg3 {[%emt 0:00:00]} Kb6 {[%emt 0:00:00]} 59. Kf3 {[%emt 0:00:00]} Kxb5 {[%emt 0:20:46]} 60. Ke2 {[%emt 0:09:19]} Bxb4 {[%emt 0:00:30]} 61. Ne3 {[%emt 0:00:30]} Kc5 {[%emt 0:00:30]} 62. Ng2 {[%emt 0:00:30]} Kd4 {[%emt 0:00:30]} 63. Nh4 {[%emt 0:00:30]} Ke4 {[%emt 0:00:30]} 64. Nxg6 {[%emt 0:00:30]} Kf5 1/2-1/2

[Event "36th German Seniors-ch-65 2024"]
[Site "Bad Wildungen"]
[Date "2024.08.25"]
[Round "2.9"]
[White "Okrajek, Alexander"]
[Black "Eichner, Christian"]
[Result "1-0"]
[ECO "A34"]
[WhiteElo "2172"]
[BlackElo "1972"]
[Annotator "RC"]
[PlyCount "66"]
[EventDate "2024.08.22"]
[EventType "swiss"]
[EventCountry "GER"]
[SourceTitle "playchess.com"]
[Source "ChessBase"]
[SourceQuality "1"]
[TimeControl "40/5400+30:1800+30"]

1. Nf3 {[%emt 0:00:09]} g6 {[%emt 0:00:07]} 2. c4 {[%emt 0:00:55]} Bg7 {[%emt 0:00:21]} 3. Nc3 {[%emt 0:00:21]} Nf6 {[%emt 0:00:51]} 4. g3 {[%emt 0:01:42]} O-O {[%emt 0:00:28]} 5. Bg2 {[%emt 0:00:20]} d5 {[%emt 0:00:25]} 6. cxd5 {[%emt 0:00:28]} Nxd5 {[%emt 0:00:07]} 7. O-O {[%emt 0:00:38]} c5 {[%emt 0:03:15]} 8. Qb3 {[%emt 0:05:34]} Nb4 {[%emt 0:02:10]} 9. a3 {[%emt 0:03:25]} Be6 {[%emt 0:01:52]} 10. Qa4 {[%emt 0:03:23]} Bd7 {[%emt 0:08:09]} 11. Qd1 {[%emt 0:04:49]} Qa5 {[%emt 0:08:56]} 12. d3 {[%emt 0:04:17]} Bc6 {[%emt 0:02:48]} 13. Bd2 {[%emt 0:09:08]} N4a6 {[%emt 0:00:56]} 14. Qc1 {[%emt 0:04:43]} Qc7 {[%emt 0:03:10]} 15. Bh6 {[%emt 0:03:21]} Nd7 {[%emt 0:04:00]} 16. Bxg7 {[%emt 0:04:49]} Kxg7 {[%emt 0:00:17]} 17. Qc2 {[%emt 0:00:58]} Ne5 {[%emt 0:05:46]} 18. Ne4 {[%emt 0:05:58]} Bxe4 {[%emt 0:12:43]} 19. dxe4 {[%emt 0:00:10]} Rfd8 {[%emt 0:02:15]} 20. Rac1 {[%emt 0:04:29]} Rac8 {[%emt 0:00:22]} 21. Qc3 {[%emt 0:03:41]} f6 {[%emt 0:00:23]} 22. Bh3 {[%emt 0:01:16]} Nxf3+ {[%emt 0:02:36]} 23. exf3 {[%emt 0:02:42]} Rb8 {[%emt 0:40:03]} 24. b4 {[%emt 0:07:18]} Qd6 {[%emt 0:00:00]} 25. bxc5 {[%emt 0:01:26]} Qd3 {[%emt 0:00:00]} 26. Rfe1 {[%emt 0:01:04]} Rd4 {[%emt 0:00:00]} 27. Re3 {[%emt 0:03:35]} Qxc3 {[%emt 0:00:00]} 28. Rexc3 {[%emt 0:00:13]} Rbd8 {[%emt 0:00:00]} 29. Bf1 {[%emt 0:02:27]} Nb8 {[%emt 0:00:00]} 30. Rb3 {[%emt 0:02:28]} R8d7 {[%emt 0:00:00]} 31. Rcb1 {[%emt 0:02:29]} b6 {[%emt 0:00:00]} 32. cxb6 {[%emt 0:01:23]} axb6 {[%emt 0:00:00]} 33. Rxb6 {[%emt 0:00:10]} Nc6 {[%emt 0:00:00]} 1-0

[Event "36th German Seniors-ch-65 2024"]
[Site "Bad Wildungen"]
[Date "2024.08.25"]
[Round "2.10"]
[White "Byhan, Gert"]
[Black "Podat, Vladimir"]
[Result "0-1"]
[ECO "B20"]
[WhiteElo "1975"]
[BlackElo "2157"]
[Annotator "RC"]
[PlyCount "54"]
[EventDate "2024.08.22"]
[EventType "swiss"]
[EventCountry "GER"]
[SourceTitle "playchess.com"]
[Source "ChessBase"]
[SourceQuality "1"]
[TimeControl "40/5400+30:1800+30"]

1. e4 {[%emt 0:00:08]} c5 {[%emt 0:00:14]} 2. b3 {[%emt 0:00:20]} Nc6 {[%emt 0:00:28]} 3. Bb2 {[%emt 0:00:11]} d6 {[%emt 0:00:28]} 4. Bb5 {[%emt 0:00:56]} Bd7 {[%emt 0:00:12]} 5. Ne2 {[%emt 0:00:43]} e6 {[%emt 0:00:28]} 6. O-O {[%emt 0:00:53]} Nf6 {[%emt 0:00:14]} 7. d3 {[%emt 0:00:15]} Be7 {[%emt 0:00:44]} 8. Nd2 {[%emt 0:01:54]} a6 {[%emt 0:00:37]} 9. Bxc6 {[%emt 0:00:06]} Bxc6 {[%emt 0:00:07]} 10. Ng3 {[%emt 0:00:19]} O-O {[%emt 0:00:15]} 11. f4 {[%emt 0:02:37]} b5 {[%emt 0:07:18]} 12. Qe2 {[%emt 0:02:14]} Nd7 {[%emt 0:01:14]} 13. e5 {[%emt 0:06:33]} g6 {[%emt 0:23:37]} 14. Kh1 {[%emt 0:08:08]} a5 {[%emt 0:04:19]} 15. c3 {[%emt 0:05:32]} a4 {[%emt 0:01:57]} 16. bxa4 {[%emt 0:04:50]} Rxa4 {[%emt 0:00:21]} 17. exd6 {[%emt 0:09:27]} Bxd6 {[%emt 0:00:09]} 18. Nge4 {[%emt 0:01:39]} Be7 {[%emt 0:00:52]} 19. c4 {[%emt 0:01:47]} Qa8 {[%emt 0:21:46]} 20. a3 {[%emt 0:14:41]} bxc4 {[%emt 0:04:08]} 21. dxc4 {[%emt 0:02:50]} Rb8 {[%emt 0:01:04]} 22. Rfb1 {[%emt 0:03:01]} Ra6 {[%emt 0:01:43]} 23. Qe3 {[%emt 0:09:40]} Rab6 {[%emt 0:01:46]} 24. Qc3 {[%emt 0:02:04]} f6 {[%emt 0:01:04]} 25. Qh3 {[%emt 0:04:44]} Bxe4 {[%emt 0:00:42]} 26. Nxe4 {[%emt 0:02:08]} Qxe4 {[%emt 0:00:07]} 27. Re1 {[%emt 0:00:48]} Qf5 {[%emt 0:00:57]} 0-1

[Event "36th German Seniors-ch-65 2024"]
[Site "Bad Wildungen"]
[Date "2024.08.25"]
[Round "2.11"]
[White "Gruzmann, Boris"]
[Black "Wild, Helmut"]
[Result "1-0"]
[ECO "B12"]
[WhiteElo "2167"]
[BlackElo "1971"]
[Annotator "RC"]
[PlyCount "85"]
[EventDate "2024.08.22"]
[EventType "swiss"]
[EventCountry "GER"]
[SourceTitle "playchess.com"]
[Source "ChessBase"]
[SourceQuality "1"]
[TimeControl "40/5400+30:1800+30"]

1. e4 {[%emt 0:00:06]} c6 {[%emt 0:00:04]} 2. d4 {[%emt 0:00:19]} d5 {[%emt 0:00:06]} 3. e5 {[%emt 0:00:13]} Bf5 {[%emt 0:00:05]} 4. Nd2 {[%emt 0:00:18]} e6 {[%emt 0:00:16]} 5. Nb3 {[%emt 0:00:11]} Nd7 {[%emt 0:00:21]} 6. Nf3 {[%emt 0:00:15]} a6 {[%emt 0:00:21]} 7. Be3 {[%emt 0:08:23]} Rc8 {[%emt 0:00:43]} 8. Bd3 {[%emt 0:01:29]} Ne7 {[%emt 0:01:46]} 9. O-O {[%emt 0:00:57]} Bxd3 {[%emt 0:04:46]} 10. Qxd3 {[%emt 0:02:22]} Nf5 {[%emt 0:01:17]} 11. Bg5 {[%emt 0:01:58]} Be7 {[%emt 0:05:46]} 12. Bxe7 {[%emt 0:07:24]} Nxe7 {[%emt 0:00:28]} 13. Qc3 {[%emt 0:18:21]} b6 {[%emt 0:11:43]} 14. Qd3 {[%emt 0:00:47]} Nb8 {[%emt 1:09:48]} 15. Nbd2 {[%emt 0:02:53]} c5 {[%emt 0:00:30]} 16. c4 {[%emt 0:52:34]} O-O {[%emt 0:00:00]} 17. dxc5 bxc5 {[%emt 0:00:00]} 18. Rad1 Qb6 19. Ra1 {[%emt 0:00:00]} Qd8 {[%emt 0:00:00]} 20. Rad1 Qb6 {[%emt 0:00:00]} 21. Ng5 {[%emt 0:02:30]} g6 {[%emt 0:00:00]} 22. Qh3 {[%emt 0:00:00]} h5 {[%emt 0:03:30]} 23. g4 {[%emt 0:00:00]} Kg7 {[%emt 0:00:00]} 24. Qf3 {[%emt 0:00:00]} f6 {[%emt 0:00:00]} 25. exf6+ {[%emt 0:00:00]} Rxf6 {[%emt 0:00:00]} 26. Qe2 {[%emt 0:00:00]} hxg4 {[%emt 0:00:00]} 27. Rfe1 {[%emt 0:00:00]} Rc6 {[%emt 0:00:00]} 28. cxd5 {[%emt 0:00:00]} Nxd5 {[%emt 0:00:00]} 29. Nc4 {[%emt 0:00:00]} Nf4 {[%emt 0:00:00]} 30. Qxg4 {[%emt 0:00:00]} Qc7 {[%emt 0:00:00]} 31. Ne4 {[%emt 0:00:00]} Rf8 {[%emt 0:00:00]} 32. Ned6 {[%emt 0:00:00]} Nd7 {[%emt 0:00:00]} 33. Re4 {[%emt 0:00:00]} Nf6 {[%emt 0:00:00]} 34. Qxf4 {[%emt 0:00:00]} Nxe4 {[%emt 0:00:00]} 35. Qxe4 {[%emt 0:00:00]} Rh8 {[%emt 0:01:47]} 36. Qe5+ {[%emt 0:00:00]} Kg8 {[%emt 0:00:50]} 37. Qxe6+ {[%emt 0:08:00]} Kg7 {[%emt 0:01:48]} 38. Ne8+ {[%emt 0:00:00]} Rxe8 {[%emt 0:01:43]} 39. Qxe8 {[%emt 0:00:00]} Qc8 {[%emt 0:01:37]} 40. Rd7+ {[%emt 0:00:00]} Kh6 {[%emt 0:00:06]} 41. Qe3+ {[%emt 0:24:09]} g5 {[%emt 0:30:26]} 42. Qh3+ {[%emt 0:00:14]} Kg6 {[%emt 0:00:07]} 43. Qh7+ {[%emt 0:00:39]} 1-0

[Event "36th German Seniors-ch-65 2024"]
[Site "Bad Wildungen"]
[Date "2024.08.25"]
[Round "2.12"]
[White "Kalwa, Norbert"]
[Black "Babrikowski, Peter"]
[Result "1-0"]
[ECO "A14"]
[WhiteElo "1971"]
[BlackElo "2153"]
[Annotator "ChessBase"]
[PlyCount "71"]
[EventDate "2024.08.22"]
[EventType "swiss"]
[EventCountry "GER"]
[SourceTitle "playchess.com"]
[Source "ChessBase"]
[SourceQuality "1"]
[TimeControl "40/5400+30:1800+30"]

1. Nf3 {[%emt 0:00:02]} Nf6 {[%emt 0:01:15]} 2. c4 {[%emt 0:00:15]} c5 {[%emt 0:00:55]} 3. b3 {[%emt 0:00:42]} e6 {[%emt 0:00:52]} 4. Bb2 {[%emt 0:00:21]} d5 {[%emt 0:01:23]} 5. g3 {[%emt 0:00:27]} b6 {[%emt 0:01:30]} 6. Bg2 {[%emt 0:00:09]} Bb7 {[%emt 0:00:07]} 7. O-O {[%emt 0:02:11]} Be7 {[%emt 0:00:41]} 8. e3 {[%emt 0:00:11]} O-O {[%emt 0:01:00]} 9. Nc3 {[%emt 0:00:10]} Nc6 {[%emt 0:03:56]} 10. cxd5 {[%emt 0:05:20]} Nxd5 {[%emt 0:09:05]} 11. Nxd5 {[%emt 0:01:11]} exd5 {[%emt 0:00:22]} 12. d4 {[%emt 0:00:06]} Bf6 {[%emt 0:00:55]} 13. Qd2 {[%emt 0:00:13]} Qe7 {[%emt 0:06:21]} 14. Rfd1 {[%emt 0:01:59]} Rfd8 {[%emt 0:03:34]} 15. Rac1 {[%emt 0:02:10]} cxd4 {[%emt 0:10:18]} 16. Nxd4 {[%emt 0:01:32]} Rac8 {[%emt 0:00:55]} 17. Bh3 {[%emt 0:08:33]} Nxd4 {[%emt 0:05:53]} 18. Bxd4 {[%emt 0:00:07]} Rc6 {[%emt 0:06:12]} 19. Rxc6 {[%emt 0:06:09]} Bxc6 {[%emt 0:00:10]} 20. Qc3 {[%emt 0:00:08]} Bxd4 {[%emt 0:11:43]} 21. Rxd4 {[%emt 0:00:07]} Qc5 {[%emt 0:01:34]} 22. Qd2 {[%emt 0:00:29]} Qa5 {[%emt 0:06:31]} 23. b4 {[%emt 0:03:29]} Qa4 {[%emt 0:09:38]} 24. e4 {[%emt 0:04:12]} Re8 {[%emt 0:01:32]} 25. exd5 {[%emt 0:01:43]} Bd7 {[%emt 0:00:07]} 26. b5 {[%emt 0:07:29]} Qxd4 {[%emt 0:09:37]} 27. Qxd4 {[%emt 0:00:18]} Bxh3 {[%emt 0:00:07]} 28. Qd2 {[%emt 0:00:45]} g6 {[%emt 0:02:26]} 29. f3 {[%emt 0:00:20]} h5 {[%emt 0:00:44]} 30. Kf2 {[%emt 0:00:27]} Bd7 {[%emt 0:00:59]} 31. a4 {[%emt 0:00:15]} Rc8 {[%emt 0:00:29]} 32. Qf4 {[%emt 0:02:14]} Rc2+ {[%emt 0:02:09]} 33. Ke3 {[%emt 0:00:26]} Bf5 {[%emt 0:00:30]} 34. Qb8+ {[%emt 0:01:18]} Kg7 {[%emt 0:00:11]} 35. Qxa7 {[%emt 0:00:24]} Rc3+ {[%emt 0:00:25]} 36. Kf4 {[%emt 0:00:26]} 1-0

[Event "36th German Seniors-ch-65 2024"]
[Site "Bad Wildungen"]
[Date "2024.08.25"]
[Round "2.13"]
[White "Kaeding, Rainer"]
[Black "Paus, Franz"]
[Result "1-0"]
[ECO "B07"]
[WhiteElo "2116"]
[BlackElo "1968"]
[Annotator "RC"]
[PlyCount "69"]
[EventDate "2024.08.22"]
[EventType "swiss"]
[EventCountry "GER"]
[SourceTitle "playchess.com"]
[Source "ChessBase"]
[SourceQuality "1"]
[TimeControl "40/5400+30:1800+30"]

1. e4 {[%emt 0:00:04]} d6 {[%emt 0:00:07]} 2. d4 {[%emt 0:00:21]} g6 {[%emt 0:00:40]} 3. Nc3 {[%emt 0:00:25]} Bg7 {[%emt 0:00:13]} 4. g3 {[%emt 0:00:52]} c6 {[%emt 0:03:48]} 5. Bg2 {[%emt 0:01:29]} Nf6 {[%emt 0:01:54]} 6. a4 {[%emt 0:01:33]} a5 {[%emt 0:00:47]} 7. Nge2 {[%emt 0:00:24]} O-O {[%emt 0:00:25]} 8. O-O {[%emt 0:00:25]} Na6 {[%emt 0:05:30]} 9. h3 {[%emt 0:01:17]} Rb8 {[%emt 0:02:59]} 10. Be3 {[%emt 0:01:34]} Bd7 {[%emt 0:01:18]} 11. Qd2 {[%emt 0:00:51]} Nb4 {[%emt 0:01:53]} 12. Rad1 {[%emt 0:01:45]} d5 {[%emt 0:03:03]} 13. e5 {[%emt 0:03:01]} Ne8 {[%emt 0:00:16]} 14. f4 {[%emt 0:01:23]} Bf5 {[%emt 0:02:18]} 15. Rc1 {[%emt 0:00:59]} h5 {[%emt 0:00:48]} 16. Kh2 {[%emt 0:01:29]} Qc8 {[%emt 0:04:54]} 17. Nd1 {[%emt 0:02:09]} Nc7 {[%emt 0:07:51]} 18. Nf2 {[%emt 0:00:59]} Rd8 {[%emt 0:09:15]} 19. c3 {[%emt 0:01:21]} Nba6 {[%emt 0:00:08]} 20. Bf3 {[%emt 0:05:42]} Bd7 {[%emt 0:12:38]} 21. g4 {[%emt 0:05:39]} hxg4 {[%emt 0:01:41]} 22. hxg4 {[%emt 0:00:05]} f5 {[%emt 0:01:05]} 23. exf6 {[%emt 0:06:17]} exf6 {[%emt 0:01:16]} 24. Kg3 {[%emt 0:00:58]} Kf7 {[%emt 0:01:19]} 25. Nd3 {[%emt 0:00:45]} Rh8 {[%emt 0:05:33]} 26. Rh1 {[%emt 0:00:53]} Rxh1 {[%emt 0:01:27]} 27. Rxh1 {[%emt 0:02:12]} Qd8 {[%emt 0:02:33]} 28. g5 {[%emt 0:05:25]} f5 {[%emt 0:07:41]} 29. Ne5+ {[%emt 0:02:10]} Bxe5 {[%emt 0:00:10]} 30. dxe5 {[%emt 0:00:15]} Ne6 {[%emt 0:04:16]} 31. Rh7+ {[%emt 0:02:06]} Kg8 {[%emt 0:01:12]} 32. Rh6 {[%emt 0:00:06]} Kg7 {[%emt 0:02:56]} 33. Nd4 {[%emt 0:05:25]} Nxd4 {[%emt 0:00:34]} 34. Bxd4 {[%emt 0:02:36]} Be6 {[%emt 0:00:17]} 35. Bh5 {[%emt 0:05:26]} 1-0